[Event "Early-Titled-Tuesday-Blitz-October-17-2023"]
[Site "Chess.com"]
[Date "2023.10.17"]
[Round "8"]
[White "Witty_Alien"]
[Black "tarno17"]
[Result "1-0"]
[WhiteElo "2239"]
[BlackElo "2117"]
[TimeControl "180+1"]
[EndTime "9:32:46 PDT"]
[Termination "Witty_Alien won by checkmate"]

1. e4 {[%clk 0:03:00.9]} 1... c5 {[%clk 0:02:59.8]} 2. Nf3 {[%clk 0:02:53.5]}
2... e6 {[%clk 0:02:59.6]} 3. d4 {[%clk 0:02:51.4]} 3... cxd4 {[%clk 0:03:00.5]}
4. Nxd4 {[%clk 0:02:52.3]} 4... a6 {[%clk 0:03:01]} 5. Nc3 {[%clk 0:02:51.3]}
5... Qc7 {[%clk 0:03:01.2]} 6. Bd3 {[%clk 0:02:48.1]} 6... Nc6 {[%clk
0:03:01.2]} 7. Be3 {[%clk 0:02:44.4]} 7... b5 {[%clk 0:02:59.1]} 8. O-O {[%clk
0:02:43.7]} 8... Bb7 {[%clk 0:02:58.9]} 9. f4 {[%clk 0:02:41]} 9... d6 {[%clk
0:02:58.7]} 10. f5 {[%clk 0:02:38.7]} 10... e5 {[%clk 0:02:46.3]} 11. Nd5 {[%clk
0:02:38.2]} 11... Qd8 {[%clk 0:02:43.9]} 12. Nxb5 {[%clk 0:02:33.3]} 12... axb5
{[%clk 0:02:40.1]} 13. Bb6 {[%clk 0:02:29.6]} 13... Qd7 {[%clk 0:02:30.5]} 14.
f6 {[%clk 0:02:08.6]} 14... Rc8 {[%clk 0:01:54]} 15. Bxb5 {[%clk 0:01:57.4]}
15... Qe6 {[%clk 0:01:41.1]} 16. a4 {[%clk 0:01:28.5]} 16... Nxf6 {[%clk
0:01:37.3]} 17. Rxf6 {[%clk 0:01:28.3]} 17... gxf6 {[%clk 0:01:38.2]} 18. a5
{[%clk 0:01:28.4]} 18... Bh6 {[%clk 0:01:02.4]} 19. a6 {[%clk 0:01:21]} 19...
Ba8 {[%clk 0:00:51.6]} 20. a7 {[%clk 0:01:09.7]} 20... O-O {[%clk 0:00:43.1]}
21. Qh5 {[%clk 0:00:58.3]} 21... Bg7 {[%clk 0:00:38.5]} 22. Ra3 {[%clk
0:00:43.2]} 22... f5 {[%clk 0:00:36.4]} 23. Rg3 {[%clk 0:00:26.7]} 23... Kh8
{[%clk 0:00:21.2]} 24. Bc4 {[%clk 0:00:15.1]} 24... Qh6 {[%clk 0:00:20.2]} 25.
Qxf5 {[%clk 0:00:13.7]} 25... Nd4 {[%clk 0:00:17.7]} 26. Bxd4 {[%clk 0:00:12.3]}
26... Rxc4 {[%clk 0:00:15.9]} 27. Be3 {[%clk 0:00:08.6]} 27... Qh4 {[%clk
0:00:12.2]} 28. Bf2 {[%clk 0:00:02.8]} 28... Bxd5 {[%clk 0:00:07.3]} 29. Rh3
{[%clk 0:00:02.8]} 29... Qxh3 {[%clk 0:00:06]} 30. Qxh3 {[%clk 0:00:02.5]} 30...
Bxe4 {[%clk 0:00:05.9]} 31. Qb3 {[%clk 0:00:02]} 31... Rxc2 {[%clk 0:00:05.3]}
32. Qb8 {[%clk 0:00:01.6]} 32... Rc1+ {[%clk 0:00:04.7]} 33. Be1 {[%clk
0:00:02.2]} 33... Rxe1+ {[%clk 0:00:04.9]} 34. Kf2 {[%clk 0:00:03]} 34... Ra1
{[%clk 0:00:04.5]} 35. Qxd6 {[%clk 0:00:02]} 35... Rxa7 {[%clk 0:00:04]} 36. b4
{[%clk 0:00:01.6]} 36... Bg6 {[%clk 0:00:04]} 37. h4 {[%clk 0:00:01.4]} 37...
Ra2+ {[%clk 0:00:03.8]} 38. Kg1 {[%clk 0:00:01.2]} 38... Bf5 {[%clk 0:00:04.2]}
39. g4 {[%clk 0:00:01.5]} 39... Bxg4 {[%clk 0:00:04.4]} 40. h5 {[%clk
0:00:02.1]} 40... Ra1+ {[%clk 0:00:04.9]} 41. Kg2 {[%clk 0:00:02.5]} 41... Bxh5
{[%clk 0:00:04.5]} 42. b5 {[%clk 0:00:02.5]} 42... Bg6 {[%clk 0:00:04.9]} 43. b6
{[%clk 0:00:02.6]} 43... Rb1 {[%clk 0:00:05.5]} 44. Qc6 {[%clk 0:00:01.7]} 44...
Rb4 {[%clk 0:00:05.1]} 45. Qc5 {[%clk 0:00:01.9]} 45... Rg4+ {[%clk 0:00:04.1]}
46. Kh3 {[%clk 0:00:02.5]} 46... Rf4 {[%clk 0:00:04.5]} 47. b7 {[%clk
0:00:02.6]} 47... Bf5+ {[%clk 0:00:04.8]} 48. Kg3 {[%clk 0:00:02.6]} 48... Bf6
{[%clk 0:00:03.9]} 49. Qxf8# {[%clk 0:00:02.1]} 1-0

[Event "Early-Titled-Tuesday-Blitz-October-17-2023"]
[Site "Chess.com"]
[Date "2023.10.17"]
[Round "8"]
[White "ivana_999"]
[Black "victormago"]
[Result "0-1"]
[WhiteElo "2090"]
[BlackElo "2468"]
[TimeControl "180+1"]
[EndTime "9:32:49 PDT"]
[Termination "victormago won by resignation"]

1. d4 {[%clk 0:03:00.9]} 1... Nf6 {[%clk 0:02:59.2]} 2. c4 {[%clk 0:03:01]} 2...
c5 {[%clk 0:02:59.3]} 3. d5 {[%clk 0:03:00.8]} 3... e6 {[%clk 0:02:59.4]} 4. Nc3
{[%clk 0:03:01.2]} 4... exd5 {[%clk 0:02:59.4]} 5. cxd5 {[%clk 0:03:02.1]} 5...
d6 {[%clk 0:02:59.7]} 6. e4 {[%clk 0:03:02.4]} 6... g6 {[%clk 0:02:59.8]} 7. f4
{[%clk 0:03:02.4]} 7... Bg7 {[%clk 0:03:00]} 8. Bb5+ {[%clk 0:03:02.3]} 8...
Nfd7 {[%clk 0:02:59.2]} 9. Nf3 {[%clk 0:03:00.1]} 9... O-O {[%clk 0:02:58.6]}
10. O-O {[%clk 0:02:59]} 10... a6 {[%clk 0:02:34.9]} 11. Bd3 {[%clk 0:02:55.6]}
11... b5 {[%clk 0:02:34.4]} 12. Re1 {[%clk 0:02:47.9]} 12... Re8 {[%clk
0:02:26.7]} 13. Be3 {[%clk 0:02:45.4]} 13... Nf6 {[%clk 0:02:26.5]} 14. Bf2
{[%clk 0:02:45.1]} 14... Bg4 {[%clk 0:02:20.6]} 15. h3 {[%clk 0:02:44.4]} 15...
Bxf3 {[%clk 0:02:19.7]} 16. Qxf3 {[%clk 0:02:45.3]} 16... Nbd7 {[%clk
0:02:19.6]} 17. Bh4 {[%clk 0:02:34.3]} 17... Qb6 {[%clk 0:02:18.4]} 18. Kh1
{[%clk 0:02:29.9]} 18... c4 {[%clk 0:02:14.5]} 19. Bc2 {[%clk 0:02:28.1]} 19...
b4 {[%clk 0:02:14.4]} 20. Na4 {[%clk 0:02:26.8]} 20... Qb5 {[%clk 0:02:01.5]}
21. b3 {[%clk 0:02:26.8]} 21... c3 {[%clk 0:01:57.6]} 22. Bf2 {[%clk 0:02:02.1]}
22... Qb7 {[%clk 0:01:51.6]} 23. Bd4 {[%clk 0:01:59.9]} 23... Re7 {[%clk
0:01:36]} 24. Re2 {[%clk 0:01:50.9]} 24... Rae8 {[%clk 0:01:35.1]} 25. Rae1
{[%clk 0:01:50.4]} 25... Nh5 {[%clk 0:01:25.7]} 26. Bxg7 {[%clk 0:01:46.8]}
26... Nxg7 {[%clk 0:01:25.7]} 27. Bd3 {[%clk 0:01:37.3]} 27... a5 {[%clk
0:01:23.5]} 28. g4 {[%clk 0:01:32]} 28... Nb6 {[%clk 0:01:16.6]} 29. Bb5 {[%clk
0:01:30.1]} 29... Rd8 {[%clk 0:01:07]} 30. Bc6 {[%clk 0:01:22.2]} 30... Qc7
{[%clk 0:01:06.3]} 31. e5 {[%clk 0:01:10.2]} 31... Qb8 {[%clk 0:00:49.9]} 32.
exd6 {[%clk 0:01:02]} 32... Rxe2 {[%clk 0:00:48.8]} 33. Qxe2 {[%clk 0:00:51.6]}
33... Nxa4 {[%clk 0:00:49.2]} 34. Bxa4 {[%clk 0:00:41.1]} 34... Qxd6 {[%clk
0:00:49.4]} 35. Bc6 {[%clk 0:00:30.5]} 35... Qxf4 {[%clk 0:00:46.7]} 36. Qe5
{[%clk 0:00:28.6]} 36... Qf3+ {[%clk 0:00:41]} 37. Kh2 {[%clk 0:00:28]} 37...
Qf2+ {[%clk 0:00:39.6]} 38. Kh1 {[%clk 0:00:28.7]} 38... Qf3+ {[%clk 0:00:35.9]}
39. Kh2 {[%clk 0:00:28.4]} 39... Ne6 {[%clk 0:00:29.3]} 40. Re3 {[%clk
0:00:05.8]} 40... Qf2+ {[%clk 0:00:26.4]} 41. Kh1 {[%clk 0:00:06.2]} 41... Nf4
{[%clk 0:00:23.8]} 42. d6 {[%clk 0:00:02.8]} 42... Qf1+ {[%clk 0:00:20.2]} 43.
Kh2 {[%clk 0:00:03.1]} 43... Qf2+ {[%clk 0:00:20.6]} 44. Kh1 {[%clk 0:00:03.4]}
44... Ne6 {[%clk 0:00:20.8]} 45. Bd5 {[%clk 0:00:01.9]} 45... Qf1+ {[%clk
0:00:18.2]} 46. Kh2 {[%clk 0:00:02.6]} 46... Qf2+ {[%clk 0:00:18.3]} 47. Kh1
{[%clk 0:00:03.2]} 47... Nf8 {[%clk 0:00:17]} 48. Qe7 {[%clk 0:00:02.5]} 48...
Rd7 {[%clk 0:00:17]} 49. Bxf7+ {[%clk 0:00:02.3]} 49... Qxf7 {[%clk 0:00:15.8]}
50. Qxf7+ {[%clk 0:00:02.9]} 50... Kxf7 {[%clk 0:00:15.8]} 51. Re7+ {[%clk
0:00:03.3]} 51... Rxe7 {[%clk 0:00:15.5]} 52. dxe7 {[%clk 0:00:04.2]} 52... Kxe7
{[%clk 0:00:15.7]} 53. Kg2 {[%clk 0:00:05.1]} 53... Kd6 {[%clk 0:00:15.8]} 54.
Kf3 {[%clk 0:00:06]} 54... Ke5 {[%clk 0:00:16.2]} 55. Ke2 {[%clk 0:00:06]} 55...
Ne6 {[%clk 0:00:16.2]} 0-1

[Event "Early-Titled-Tuesday-Blitz-October-17-2023"]
[Site "Chess.com"]
[Date "2023.10.17"]
[Round "8"]
[White "masterofpuppets2"]
[Black "azikom"]
[Result "1/2-1/2"]
[WhiteElo "2519"]
[BlackElo "2622"]
[TimeControl "180+1"]
[EndTime "9:32:51 PDT"]
[Termination "Game drawn by repetition"]

1. d4 {[%clk 0:03:00.9]} 1... d5 {[%clk 0:02:59.4]} 2. c4 {[%clk 0:03:00.9]}
2... c6 {[%clk 0:02:59.3]} 3. Nf3 {[%clk 0:03:01.1]} 3... Nf6 {[%clk 0:02:59.2]}
4. Nc3 {[%clk 0:03:01.7]} 4... dxc4 {[%clk 0:02:59.3]} 5. a4 {[%clk 0:03:01.9]}
5... Bg4 {[%clk 0:02:58.9]} 6. Ne5 {[%clk 0:02:53.6]} 6... Bh5 {[%clk
0:02:58.6]} 7. f3 {[%clk 0:02:36.1]} 7... Nfd7 {[%clk 0:02:56.6]} 8. Nxc4 {[%clk
0:02:27.6]} 8... e5 {[%clk 0:02:56.3]} 9. e4 {[%clk 0:02:11.1]} 9... Qh4+ {[%clk
0:02:55.7]} 10. g3 {[%clk 0:02:10.1]} 10... Qf6 {[%clk 0:02:56.2]} 11. dxe5
{[%clk 0:01:47.9]} 11... Qxf3 {[%clk 0:02:55.3]} 12. Qxf3 {[%clk 0:01:35.7]}
12... Bxf3 {[%clk 0:02:56.2]} 13. Rg1 {[%clk 0:01:36.3]} 13... Na6 {[%clk
0:02:55.2]} 14. Be3 {[%clk 0:01:20.6]} 14... Nb4 {[%clk 0:02:52.1]} 15. Kf2
{[%clk 0:01:20.5]} 15... Bh5 {[%clk 0:02:49.3]} 16. Rc1 {[%clk 0:01:14.1]} 16...
Be7 {[%clk 0:02:33.7]} 17. Be2 {[%clk 0:01:07.9]} 17... Bxe2 {[%clk 0:02:32.5]}
18. Kxe2 {[%clk 0:01:08.6]} 18... O-O {[%clk 0:02:21]} 19. Rgd1 {[%clk
0:01:07.4]} 19... Nc5 {[%clk 0:02:19.4]} 20. Bxc5 {[%clk 0:00:58.4]} 20... Bxc5
{[%clk 0:02:19]} 21. Rd7 {[%clk 0:00:59.1]} 21... b6 {[%clk 0:02:12.7]} 22. Nd6
{[%clk 0:00:46]} 22... Rad8 {[%clk 0:01:55.4]} 23. Rxd8 {[%clk 0:00:39.6]} 23...
Rxd8 {[%clk 0:01:54.9]} 24. Rd1 {[%clk 0:00:36.4]} 24... Kf8 {[%clk 0:01:43.3]}
25. Rd2 {[%clk 0:00:32.3]} 25... g6 {[%clk 0:01:39.7]} 26. Kf3 {[%clk
0:00:30.8]} 26... Ke7 {[%clk 0:01:37]} 27. Ne2 {[%clk 0:00:26.7]} 27... Bxd6
{[%clk 0:01:35.5]} 28. exd6+ {[%clk 0:00:22.4]} 28... Rxd6 {[%clk 0:01:35.8]}
29. Rd4 {[%clk 0:00:18.5]} 29... c5 {[%clk 0:01:33.6]} 30. Rxd6 {[%clk
0:00:16.7]} 30... Kxd6 {[%clk 0:01:34.5]} 31. Nc3 {[%clk 0:00:17.6]} 31... a6
{[%clk 0:01:33.1]} 32. Kf4 {[%clk 0:00:17.1]} 32... f6 {[%clk 0:01:32.4]} 33.
Ke3 {[%clk 0:00:16.9]} 33... Nc2+ {[%clk 0:01:29.8]} 34. Kd3 {[%clk 0:00:16.6]}
34... Nd4 {[%clk 0:01:30.7]} 35. Nd5 {[%clk 0:00:16.9]} 35... b5 {[%clk
0:01:28.5]} 36. axb5 {[%clk 0:00:17]} 36... axb5 {[%clk 0:01:28.9]} 37. Nxf6
{[%clk 0:00:17.3]} 37... h5 {[%clk 0:01:28]} 38. Nd5 {[%clk 0:00:16.4]} 38...
Nf3 {[%clk 0:01:27.3]} 39. Nf4 {[%clk 0:00:14.8]} 39... Ne5+ {[%clk 0:01:26.1]}
40. Kd2 {[%clk 0:00:12.5]} 40... c4 {[%clk 0:01:25.3]} 41. Kc3 {[%clk
0:00:11.9]} 41... Kc5 {[%clk 0:01:25]} 42. Ne6+ {[%clk 0:00:12]} 42... Kd6
{[%clk 0:01:25.1]} 43. Nf4 {[%clk 0:00:12.2]} 43... Kc6 {[%clk 0:01:21.1]} 44.
Ne6 {[%clk 0:00:11.2]} 44... Ng4 {[%clk 0:01:09.4]} 45. h4 {[%clk 0:00:10.4]}
45... Nf2 {[%clk 0:01:08.3]} 46. Kd4 {[%clk 0:00:09.6]} 46... Nd3 {[%clk
0:01:03.1]} 47. b3 {[%clk 0:00:10]} 47... Nb2 {[%clk 0:00:58.1]} 48. bxc4 {[%clk
0:00:09.7]} 48... Nxc4 {[%clk 0:00:58]} 49. Nf4 {[%clk 0:00:09.9]} 49... Nd6
{[%clk 0:00:54.9]} 50. Nxg6 {[%clk 0:00:09.3]} 50... b4 {[%clk 0:00:55.2]} 51.
Ne5+ {[%clk 0:00:09.6]} 51... Kb5 {[%clk 0:00:55.3]} 52. Nd3 {[%clk 0:00:10.1]}
52... b3 {[%clk 0:00:52]} 53. Kd5 {[%clk 0:00:09.7]} 53... Nc4 {[%clk
0:00:47.4]} 54. e5 {[%clk 0:00:09.7]} 54... Ne3+ {[%clk 0:00:45.9]} 55. Ke4
{[%clk 0:00:09.8]} 55... Ng4 {[%clk 0:00:45.8]} 56. e6 {[%clk 0:00:09.3]} 56...
Kc4 {[%clk 0:00:45.3]} 57. e7 {[%clk 0:00:07.9]} 57... Nf6+ {[%clk 0:00:45]} 58.
Ke5 {[%clk 0:00:04]} 58... Ne8 {[%clk 0:00:44.2]} 59. Nb2+ {[%clk 0:00:03.4]}
59... Kc3 {[%clk 0:00:44.4]} 60. Na4+ {[%clk 0:00:03.9]} 60... Kb4 {[%clk
0:00:44.6]} 61. Nb2 {[%clk 0:00:04.5]} 61... Kc3 {[%clk 0:00:44.8]} 62. Na4+
{[%clk 0:00:04.9]} 62... Kb4 {[%clk 0:00:45.3]} 63. Nb2 {[%clk 0:00:05.5]} 63...
Kc3 {[%clk 0:00:45.6]} 1/2-1/2

[Event "Early-Titled-Tuesday-Blitz-October-17-2023"]
[Site "Chess.com"]
[Date "2023.10.17"]
[Round "8"]
[White "garicradomir"]
[Black "Treasurechess777"]
[Result "1-0"]
[WhiteElo "2328"]
[BlackElo "2442"]
[TimeControl "180+1"]
[EndTime "9:32:52 PDT"]
[Termination "garicradomir won by resignation"]

1. e4 {[%clk 0:03:00.9]} 1... Nf6 {[%clk 0:03:00.9]} 2. e5 {[%clk 0:02:59.3]}
2... Nd5 {[%clk 0:03:01.1]} 3. Nf3 {[%clk 0:02:59.2]} 3... Nb6 {[%clk
0:03:01.3]} 4. a4 {[%clk 0:02:56.8]} 4... a5 {[%clk 0:03:01]} 5. d4 {[%clk
0:02:49.1]} 5... d5 {[%clk 0:03:01]} 6. Bb5+ {[%clk 0:02:46.3]} 6... c6 {[%clk
0:03:00.7]} 7. Bd3 {[%clk 0:02:45.7]} 7... Bg4 {[%clk 0:03:01.2]} 8. h3 {[%clk
0:02:45]} 8... Bxf3 {[%clk 0:03:01]} 9. Qxf3 {[%clk 0:02:44.4]} 9... e6 {[%clk
0:03:01.9]} 10. O-O {[%clk 0:02:40.9]} 10... c5 {[%clk 0:03:01.2]} 11. dxc5
{[%clk 0:02:38]} 11... N6d7 {[%clk 0:02:59.4]} 12. Nc3 {[%clk 0:02:34]} 12...
Nc6 {[%clk 0:02:59.3]} 13. Bf4 {[%clk 0:02:27.7]} 13... Ndxe5 {[%clk 0:02:59]}
14. Bxe5 {[%clk 0:02:27.8]} 14... Nxe5 {[%clk 0:02:59.9]} 15. Bb5+ {[%clk
0:02:27.4]} 15... Nc6 {[%clk 0:02:58.6]} 16. Rfe1 {[%clk 0:02:25.1]} 16... Be7
{[%clk 0:02:56.1]} 17. Rad1 {[%clk 0:02:19.3]} 17... O-O {[%clk 0:02:55.3]} 18.
Ne2 {[%clk 0:02:18.5]} 18... Bxc5 {[%clk 0:02:47.7]} 19. c4 {[%clk 0:02:16.2]}
19... d4 {[%clk 0:01:58]} 20. Bxc6 {[%clk 0:02:13.9]} 20... bxc6 {[%clk
0:01:58.9]} 21. Qxc6 {[%clk 0:02:12.5]} 21... Rc8 {[%clk 0:01:54.1]} 22. Qf3
{[%clk 0:02:06]} 22... Qb6 {[%clk 0:01:50.9]} 23. b3 {[%clk 0:02:06.2]} 23...
Bb4 {[%clk 0:01:33.5]} 24. Rf1 {[%clk 0:02:02.2]} 24... e5 {[%clk 0:01:32.4]}
25. g4 {[%clk 0:02:01.7]} 25... Qe6 {[%clk 0:01:17.6]} 26. Ng3 {[%clk
0:02:00.7]} 26... g6 {[%clk 0:01:16.2]} 27. g5 {[%clk 0:01:39.7]} 27... f5
{[%clk 0:01:14.3]} 28. gxf6 {[%clk 0:01:37.8]} 28... Rxf6 {[%clk 0:01:13.4]} 29.
Qg4 {[%clk 0:01:36.9]} 29... Qxg4 {[%clk 0:00:49.3]} 30. hxg4 {[%clk 0:01:37.8]}
30... Rf4 {[%clk 0:00:49.2]} 31. f3 {[%clk 0:01:34.2]} 31... Rcf8 {[%clk
0:00:47.7]} 32. Kg2 {[%clk 0:01:32.8]} 32... Rb8 {[%clk 0:00:37.5]} 33. Rd3
{[%clk 0:01:31]} 33... Bc3 {[%clk 0:00:37.2]} 34. Rb1 {[%clk 0:01:29.1]} 34...
Rf7 {[%clk 0:00:37.3]} 35. Ne4 {[%clk 0:01:26.9]} 35... Rfb7 {[%clk 0:00:28]}
36. Nc5 {[%clk 0:01:14.7]} 36... Rc7 {[%clk 0:00:25.7]} 37. Na6 {[%clk
0:01:14.1]} 37... Rcb7 {[%clk 0:00:24.3]} 38. Nxb8 {[%clk 0:01:14.2]} 38... Rxb8
{[%clk 0:00:25.2]} 39. Kf2 {[%clk 0:01:08.8]} 39... Kf7 {[%clk 0:00:25.3]} 40.
Ke2 {[%clk 0:01:04.4]} 40... Kf6 {[%clk 0:00:25.4]} 41. Rxc3 {[%clk 0:01:02.7]}
41... dxc3 {[%clk 0:00:25.1]} 42. Kd3 {[%clk 0:01:03.1]} 42... Kg5 {[%clk
0:00:23.7]} 43. Kxc3 {[%clk 0:01:02.6]} 43... Kf4 {[%clk 0:00:24.6]} 44. Rf1
{[%clk 0:01:00.9]} 44... Rb7 {[%clk 0:00:16.9]} 45. c5 {[%clk 0:01:00.9]} 45...
Kg3 {[%clk 0:00:17.1]} 46. Kc4 {[%clk 0:00:57.8]} 46... Kg2 {[%clk 0:00:17.3]}
47. Rb1 {[%clk 0:00:55.4]} 47... Kxf3 {[%clk 0:00:16.7]} 48. c6 {[%clk
0:00:55.7]} 48... Rc7 {[%clk 0:00:16.6]} 49. Kd5 {[%clk 0:00:54.8]} 49... e4
{[%clk 0:00:16.8]} 50. Kd6 {[%clk 0:00:52.6]} 50... Rc8 {[%clk 0:00:15.8]} 51.
Kd7 {[%clk 0:00:53.1]} 51... Rh8 {[%clk 0:00:13.7]} 52. g5 {[%clk 0:00:49.1]}
52... e3 {[%clk 0:00:13.8]} 53. c7 {[%clk 0:00:46.1]} 53... e2 {[%clk
0:00:11.5]} 54. c8=Q {[%clk 0:00:44.4]} 54... Rxc8 {[%clk 0:00:12.1]} 55. Kxc8
{[%clk 0:00:45.3]} 55... Kf2 {[%clk 0:00:11.7]} 56. Kb7 {[%clk 0:00:42.2]} 56...
e1=Q {[%clk 0:00:12.2]} 57. Rxe1 {[%clk 0:00:42.2]} 57... Kxe1 {[%clk
0:00:13.1]} 58. Ka6 {[%clk 0:00:42.7]} 58... Kf2 {[%clk 0:00:13.9]} 59. Kxa5
{[%clk 0:00:43.1]} 59... Kf3 {[%clk 0:00:14.8]} 60. b4 {[%clk 0:00:43.7]} 60...
Kg4 {[%clk 0:00:15.7]} 61. b5 {[%clk 0:00:44.4]} 61... Kxg5 {[%clk 0:00:16.6]}
62. b6 {[%clk 0:00:45]} 62... h5 {[%clk 0:00:17.4]} 63. b7 {[%clk 0:00:45.5]}
63... h4 {[%clk 0:00:17.8]} 64. b8=Q {[%clk 0:00:46]} 64... Kg4 {[%clk
0:00:17.4]} 65. Qh2 {[%clk 0:00:45.7]} 65... g5 {[%clk 0:00:17]} 66. Kb4 {[%clk
0:00:46]} 66... Kf3 {[%clk 0:00:16.8]} 67. Qh3+ {[%clk 0:00:44.3]} 67... Kf4
{[%clk 0:00:16.4]} 68. Qf1+ {[%clk 0:00:44]} 68... Kg4 {[%clk 0:00:14.3]} 69. a5
{[%clk 0:00:42.8]} 69... h3 {[%clk 0:00:15.2]} 70. a6 {[%clk 0:00:43.5]} 70...
h2 {[%clk 0:00:13.6]} 71. a7 {[%clk 0:00:43.6]} 71... Kg3 {[%clk 0:00:13.7]} 72.
a8=Q {[%clk 0:00:43.3]} 72... g4 {[%clk 0:00:14.6]} 1-0

[Event "Early-Titled-Tuesday-Blitz-October-17-2023"]
[Site "Chess.com"]
[Date "2023.10.17"]
[Round "8"]
[White "LUISMIGUELOV"]
[Black "PoXerStar"]
[Result "1/2-1/2"]
[WhiteElo "2177"]
[BlackElo "2420"]
[TimeControl "180+1"]
[EndTime "9:32:52 PDT"]
[Termination "Game drawn by repetition"]

1. d4 {[%clk 0:03:00.9]} 1... Nf6 {[%clk 0:02:56.5]} 2. c3 {[%clk 0:03:01.1]}
2... c5 {[%clk 0:02:55.9]} 3. dxc5 {[%clk 0:02:58.5]} 3... e6 {[%clk 0:02:55.5]}
4. Be3 {[%clk 0:02:57.6]} 4... Ng4 {[%clk 0:02:48.3]} 5. Bf4 {[%clk 0:02:50.1]}
5... Bxc5 {[%clk 0:02:44.2]} 6. e3 {[%clk 0:02:49.8]} 6... Nf6 {[%clk 0:02:38]}
7. Nf3 {[%clk 0:02:48.5]} 7... d5 {[%clk 0:02:33.6]} 8. Bd3 {[%clk 0:02:43]}
8... O-O {[%clk 0:02:31.6]} 9. O-O {[%clk 0:02:42.6]} 9... Nc6 {[%clk
0:02:31.1]} 10. Qc2 {[%clk 0:02:41.1]} 10... h6 {[%clk 0:02:29]} 11. Nbd2 {[%clk
0:02:29]} 11... Re8 {[%clk 0:02:29.4]} 12. Nb3 {[%clk 0:02:27.6]} 12... Bb6
{[%clk 0:02:28.8]} 13. Nbd4 {[%clk 0:02:26.7]} 13... Bd7 {[%clk 0:02:14]} 14.
Ne5 {[%clk 0:02:25.3]} 14... Nxe5 {[%clk 0:02:12.5]} 15. Bxe5 {[%clk 0:02:25.2]}
15... Rc8 {[%clk 0:02:13.4]} 16. Qe2 {[%clk 0:02:21.4]} 16... Bc6 {[%clk
0:02:02.6]} 17. Rad1 {[%clk 0:02:19.8]} 17... Nd7 {[%clk 0:02:03]} 18. Bg3
{[%clk 0:02:12]} 18... Ba4 {[%clk 0:01:46.3]} 19. b3 {[%clk 0:02:03.4]} 19...
Bc6 {[%clk 0:01:45.5]} 20. Nxc6 {[%clk 0:01:59.1]} 20... Rxc6 {[%clk 0:01:43.5]}
21. c4 {[%clk 0:01:58.8]} 21... dxc4 {[%clk 0:01:36.7]} 22. Bxc4 {[%clk
0:01:57.1]} 22... a6 {[%clk 0:01:32.9]} 23. h3 {[%clk 0:01:49.1]} 23... Qc8
{[%clk 0:01:31.6]} 24. Bd3 {[%clk 0:01:38.7]} 24... Nf6 {[%clk 0:01:29.1]} 25.
Be5 {[%clk 0:01:28.7]} 25... Nd5 {[%clk 0:01:27.7]} 26. Bb1 {[%clk 0:01:23.2]}
26... Bc7 {[%clk 0:01:21.6]} 27. Bb2 {[%clk 0:01:04.8]} 27... Bb8 {[%clk
0:01:19.6]} 28. Qd3 {[%clk 0:01:03.7]} 28... f5 {[%clk 0:00:51.4]} 29. e4 {[%clk
0:00:58.8]} 29... Nc3 {[%clk 0:00:44.7]} 30. exf5 {[%clk 0:00:44.1]} 30... Nxb1
{[%clk 0:00:18.8]} 31. Qxb1 {[%clk 0:00:39.8]} 31... exf5 {[%clk 0:00:19.1]} 32.
Rfe1 {[%clk 0:00:34.2]} 32... Rce6 {[%clk 0:00:19.5]} 33. Rxe6 {[%clk 0:00:32]}
33... Rxe6 {[%clk 0:00:20.4]} 34. g3 {[%clk 0:00:28.3]} 34... Qc7 {[%clk
0:00:17.6]} 35. Rc1 {[%clk 0:00:22.3]} 35... Qd7 {[%clk 0:00:15.7]} 36. Rd1
{[%clk 0:00:21.2]} 36... Qe8 {[%clk 0:00:14.2]} 37. Qd3 {[%clk 0:00:19.9]} 37...
Rd6 {[%clk 0:00:12.5]} 38. Qc2 {[%clk 0:00:17.2]} 38... Rxd1+ {[%clk 0:00:12.7]}
39. Qxd1 {[%clk 0:00:17.1]} 39... f4 {[%clk 0:00:12]} 40. Qd5+ {[%clk
0:00:16.2]} 40... Kh8 {[%clk 0:00:11.7]} 41. Qd2 {[%clk 0:00:14.2]} 41... Qf8
{[%clk 0:00:07.2]} 42. gxf4 {[%clk 0:00:12]} 42... Bxf4 {[%clk 0:00:07.3]} 43.
Qe2 {[%clk 0:00:10.4]} 43... Bg5 {[%clk 0:00:07.2]} 44. Qg4 {[%clk 0:00:09.6]}
44... Bf6 {[%clk 0:00:07]} 45. Bxf6 {[%clk 0:00:07.7]} 45... Qxf6 {[%clk
0:00:07.9]} 46. Qc8+ {[%clk 0:00:07]} 46... Kh7 {[%clk 0:00:08.6]} 47. Qxb7
{[%clk 0:00:07.4]} 47... Qa1+ {[%clk 0:00:08.6]} 48. Kg2 {[%clk 0:00:06.6]}
48... Qxa2 {[%clk 0:00:09.5]} 49. Qe4+ {[%clk 0:00:05.4]} 49... Kg8 {[%clk
0:00:09.7]} 50. Qe8+ {[%clk 0:00:05.1]} 50... Kh7 {[%clk 0:00:10]} 51. Qe4+
{[%clk 0:00:05.5]} 51... Kh8 {[%clk 0:00:10.4]} 52. Qe8+ {[%clk 0:00:05.2]}
52... Kh7 {[%clk 0:00:10.9]} 53. Qe4+ {[%clk 0:00:05.4]} 1/2-1/2